fUST/lending_fUST_20250327
["ID","MTS","AMOUNT","RATE_DAILY","PERIOD"]
[356724959,1743036633607,-212.2,0.00024963,3]
[356724960,1743036633616,-511.26722112,0.00024973,2]
[356724961,1743036633627,-500.0,0.00024973,2]
[356724962,1743036633637,-298.79170922,0.00024973,2]
[356724963,1743036633647,-261.26570462,0.00024973,2]
[356724964,1743036633657,-641.5913227,0.00024973,2]
[356724965,1743036633668,-502.04053544,0.00024973,2]
[356724966,1743036633679,-500.0,0.00024973,2]
[356724967,1743036633693,-500.50626638,0.00024973,2]
[356724968,1743036633703,-500.0,0.00024973,2]
[356724969,1743036633713,-500.0,0.00024973,2]
[356724970,1743036633723,-1737.49112841,0.00024978,2]
[356724971,1743036633732,-151.0,0.0002499,7]
[356724972,1743036633742,-151.0,0.0002499,7]
[356724973,1743036633751,-151.0,0.0002499,2]
[356724974,1743036633760,-151.0,0.0002499,2]
[356724975,1743036633770,-151.0,0.0002499,7]
[356724976,1743036633781,-151.0,0.0002499,7]
[356724977,1743036633790,-29587.80341302,0.00025,4]
[356724978,1743036633800,-151.0,0.00025,7]
[356724979,1743036633811,-151.0,0.00025,7]
[356724980,1743036633821,-151.0,0.00025,7]
[356724981,1743036633830,-151.0,0.00025,7]
[356724982,1743036633839,-151.0,0.00025,7]
[356724983,1743036633849,-151.0,0.00025,2]
[356724984,1743036633859,-151.0,0.00025,2]
[356724985,1743036633868,-151.0,0.00025,7]
[356724986,1743036633878,-151.0,0.00025,7]
[356724987,1743036633888,-1883.04319914,0.00025383,4]
[356724988,1743036633898,-303.28980449,0.00025644,2]
[356724989,1743036633907,-500.0,0.0002584,2]
[356724990,1743036633917,-1883.04319914,0.00026003,4]
[356724991,1743036633926,-848.8,0.00026333,3]
[356724992,1743036633939,-353.68,0.00026333,3]
[356724993,1743036633948,-500.0,0.00026367,2]
[356724994,1743036633958,-507.37884348,0.00026367,2]
[356724995,1743036633968,-199.77377934,0.00026367,2]
[356724996,1743036633978,-500.0,0.00026367,2]
[356724997,1743036633988,-500.0,0.00026367,2]
[356724998,1743036633998,-502.31118616,0.00026367,2]
[356724999,1743036634011,-500.0,0.00026367,2]
[356725000,1743036634021,-500.0,0.00026367,2]
[356725001,1743036634031,-500.0,0.00026367,2]
[356725002,1743036634041,-500.0,0.00026367,2]
[356725003,1743036634051,-500.0,0.00026367,2]
[356725004,1743036634061,-500.0,0.00026367,2]
[356725005,1743036634071,-500.0,0.00026367,2]
[356725006,1743036634081,-500.0,0.00026367,2]
[356725007,1743036634092,-1610.54254651,0.00026476,2]
[356725008,1743036634102,-9284.94680934,0.00026476,2]
[356725009,1743036634112,-106399.862269,0.00026476,2]
[356725010,1743036634122,-1883.04319914,0.00026624,4]
[356725011,1743036634132,-151.0,0.00026728,7]
[356725012,1743036634142,-151.0,0.00026728,7]
[356725013,1743036634153,-151.0,0.00026728,7]
[356725014,1743036634163,-151.0,0.00026728,7]
[356725015,1743036634172,-303.28980449,0.00026729,2]
[356725016,1743036634183,-834.83451184,0.00027,3]
[356725017,1743036634194,-151.0,0.00027234,7]
[356725018,1743036634203,-151.0,0.00027234,2]
[356725019,1743036634213,-151.0,0.00027234,2]
[356725020,1743036634223,-1883.04319914,0.00027245,4]
[356725021,1743036634234,-3473.8073427,0.00027274,2]
[356725022,1743036634244,-500.0,0.00027301,2]
[356725023,1743036634253,-160.0,0.00027329,3]
[356725024,1743036634264,-160.0,0.00027329,5]
[356725025,1743036634273,-500.0,0.00027448,2]
[356725026,1743036634283,-303.28980449,0.00027815,2]
[356725027,1743036634294,-500.0,0.00027825,2]
[356725028,1743036634304,-1883.04319914,0.00027866,4]
[356725029,1743036634314,-77480.66926705,0.0002799,2]
[356725030,1743036634324,-160.0,0.00028,3]
[356725031,1743036634334,-160.0,0.00028,3]
[356725032,1743036634344,-151.0,0.00028004,7]
[356725033,1743036634355,-244.595598,0.00028004,7]
[356725034,1743036634365,-500.0,0.00028255,2]
[356725035,1743036634375,-1372.32401353,0.00028281,2]
[356725036,1743036634386,-151.0,0.00028381,2]
[356725037,1743036634396,-151.0,0.00028381,2]
[356725038,1743036634407,-151.0,0.00028381,7]
[356725039,1743036634417,-1883.04319914,0.00028486,5]
[356725040,1743036634428,-303.28980449,0.000289,2]
[356725041,1743036634440,-125885.67425004,0.0002898,2]
[356725042,1743036634456,-54572.54800176,0.0002898,2]
[356725043,1743036634509,-296.96022616,0.0002898,2]
[356725044,1743036634522,-501.02,0.0002898,2]
[356725056,1743036638091,-30104.90565929,0.0002898,2]
[356725057,1743036638103,-1438.61640075,0.0002898,2]
[356725058,1743036638113,-151.0,0.0002899,7]
[356725059,1743036638123,-1012.65527181,0.00029,7]
[356725060,1743036638133,-1012.65527181,0.00029,7]
[356725061,1743036638142,-1586.01691477,0.00029,7]
[356725062,1743036638153,-2318.18780678,0.00029,7]
[356725063,1743036638162,-144.46633823,0.00029,7]
[356725064,1743036638175,-3855.48787274,0.00029,7]
[356725078,1743036640446,-1512.81684643,0.00029,7]
[356725079,1743036640512,-60.46304702,0.00029,7]
[356725105,1743036643327,-230.93990006,0.00029,7]
[356725106,1743036643338,-119.05781269,0.00029,7]
[356725124,1743036646247,-222.47367294,0.00028979,2]
[356725125,1743036646257,-31.94218731,0.00029,7]
[356725126,1743036646267,-21.59966997,0.00029,7]
[356725127,1743036646279,-196.55469503,0.00029,7]
[356725128,1743036646289,-151.0,0.00029,2]
[356725129,1743036646299,-90.09030497,0.00029,2]
[356725130,1743036646311,-60.90969503,0.00029,2]
[356725131,1743036646320,-834.83451184,0.00029,7]
[356725132,1743036646329,-1883.04319914,0.00029107,5]
[356725133,1743036646339,-500.0,0.0002933,2]
[356725134,1743036646348,-2029.52418902,0.00029706,3]
[356725135,1743036646370,-470.47581098,0.00029706,3]
[356725136,1743036646379,-151.0,0.00029706,7]
[356725137,1743036646389,-1883.04319914,0.00029728,5]
[356725138,1743036646398,-3473.8073427,0.00029799,2]
[356725139,1743036646407,-500.0,0.0002983,2]
[356725140,1743036646417,-1581.99997789,0.000299,120]
[356725141,1743036646426,-500.0,0.0002999,2]
[356725142,1743036646436,-273.35,0.0003,5]
[356725143,1743036646447,-1000.0,0.0003,5]
[356725144,1743036646457,-800.0,0.0003,5]
[356725145,1743036646466,-3904.20472155,0.0003,7]
[356725146,1743036646476,-5804.17400448,0.0003,7]
[356725147,1743036646486,-600.0,0.0003,5]
[356725148,1743036646495,-199.0,0.0003,7]
[356725149,1743036646505,-151.0,0.0003,2]
[356725150,1743036646514,-151.0,0.0003,2]
[356725151,1743036646523,-178.0,0.0003,2]
[356725152,1743036646613,-151.0,0.00030179,7]
[356725153,1743036646642,-500.0,0.00030213,7]
[356725154,1743036646653,-1883.04319914,0.00030348,5]
[356725155,1743036646662,-918.0101409,0.00030452,5]
[356725156,1743036646673,-500.0,0.00030473,5]
[356725157,1743036646682,-500.0,0.00030473,5]
[356725158,1743036646692,-151.0,0.00030482,2]
[356725159,1743036646701,-151.0,0.00030482,2]
[356725160,1743036646711,-1883.04319914,0.00030969,5]
[356725161,1743036646720,-300.43388592,0.0003099,2]
[356725162,1743036646730,-597.99342,0.00031,60]
[356725163,1743036646740,-1000.0,0.00031319,5]
[356725164,1743036646750,-2500.0,0.00031442,3]
[356725165,1743036646760,-2500.0,0.00031453,3]
[356725167,1743036646769,-2500.0,0.00031462,3]
[356725169,1743036646779,-2500.0,0.00031471,3]
[356725171,1743036646788,-151.0,0.00031479,7]
[356725173,1743036646798,-2500.0,0.0003148,3]
[356725175,1743036646807,-2500.0,0.00031488,3]
[356725177,1743036646816,-151.0,0.00031497,2]
[356725179,1743036646826,-197.380604,0.00031497,2]
[356725181,1743036646835,-2500.0,0.00031497,3]
[356725183,1743036646845,-2500.0,0.00031497,3]
[356725185,1743036646855,-834.83451184,0.000315,3]
[356725187,1743036646865,-1883.04319914,0.0003159,6]
[356725189,1743036646874,-390.4633448,0.00031592,3]
[356725192,1743036646884,-500.0,0.0003169,7]
[356725194,1743036646893,-850.29527051,0.00031771,4]
[356725196,1743036646903,-1000.0,0.00031846,2]
[356725198,1743036646912,-1047.06933208,0.00031846,5]
[356725200,1743036646922,-1000.0,0.00031846,5]
[356725201,1743036646932,-1000.0,0.00031846,5]
[356725204,1743036646942,-500.0,0.00031846,5]
[356725206,1743036646951,-1000.0,0.00031846,5]
[356725208,1743036646961,-1000.0,0.00031846,5]
[356725210,1743036646970,-1000.0,0.00031846,5]
[356725212,1743036646979,-1000.0,0.00031846,5]
[356725214,1743036646989,-500.0,0.00031846,5]
[356725215,1743036646999,-150.0,0.00031887,2]
[356725218,1743036647012,-541.0,0.00031887,2]
[356725219,1743036647022,-2263.0,0.00031887,2]
[356725221,1743036647031,-1915.0,0.00031887,2]
[356725223,1743036647041,-150.0,0.00031887,2]
[356725225,1743036647051,-150.202,0.00031887,2]
[356725226,1743036647061,-480.995,0.00031887,2]
[356725228,1743036647070,-151.0,0.00031947,2]
[356725230,1743036647080,-151.0,0.0003199,7]
[356725232,1743036647090,-1883.04319914,0.0003221,6]
[356725233,1743036647099,-3473.8073427,0.00032325,2]
[356725235,1743036647109,-1883.04319914,0.00032831,6]
[356725237,1743036647119,-500.0,0.00032873,5]
[356725239,1743036647128,-500.0,0.00032873,5]
[356725241,1743036647138,-500.0,0.00032873,5]
[356725243,1743036647149,-500.0,0.00032873,5]
[356725245,1743036647159,-500.0,0.00032873,5]
[356725247,1743036647169,-414.97557051,0.00032873,5]
[356725249,1743036647179,-500.0,0.00032873,5]
[356725251,1743036647188,-500.0,0.00032873,5]
[356725253,1743036647198,-500.0,0.00032873,5]
[356725255,1743036647208,-501.41748333,0.00032873,5]
[356725257,1743036647218,-15000.0,0.00032877,5]
[356725259,1743036647227,-1595.93283172,0.00032877,7]
[356725261,1743036647236,-1595.93283172,0.00032877,7]
[356725263,1743036647245,-1595.93283172,0.00032877,7]
[356725265,1743036647255,-1595.93283172,0.00032877,7]
[356725267,1743036647264,-1595.93283172,0.00032877,7]
[356725269,1743036647273,-1595.93283172,0.00032877,7]
[356725271,1743036647283,-1595.93283172,0.00032877,7]
[356725273,1743036647292,-1595.93283172,0.00032877,7]
[356725275,1743036647301,-1595.93283172,0.00032877,7]
[356725277,1743036647310,-1595.93283172,0.00032877,7]
[356725279,1743036647322,-1595.93283172,0.00032877,7]
[356725281,1743036647332,-1595.93283172,0.00032877,7]
[356725283,1743036647341,-1595.93283172,0.00032877,7]
[356725284,1743036647350,-1595.93283172,0.00032877,7]
[356725285,1743036647359,-1595.93283172,0.00032877,7]
[356725286,1743036647369,-1595.93283172,0.00032877,7]
[356725287,1743036647378,-1595.93283172,0.00032877,7]
[356725288,1743036647387,-1595.93283172,0.00032877,7]
[356725289,1743036647396,-1595.93283172,0.00032877,7]
[356725290,1743036647405,-1595.93283172,0.00032877,7]
[356725291,1743036647415,-1595.93283172,0.00032877,7]
[356725292,1743036647424,-1595.93283172,0.00032877,7]
[356725293,1743036647433,-1595.93283172,0.00032877,7]
[356725294,1743036647443,-1595.93283172,0.00032877,7]
[356725295,1743036647452,-1595.93283172,0.00032877,7]
[356725296,1743036647461,-1595.93283172,0.00032877,7]
[356725297,1743036647471,-1595.93283172,0.00032877,7]
[356725299,1743036647481,-1595.93283172,0.00032877,7]
[356725301,1743036647491,-1595.93283172,0.00032877,7]
[356725303,1743036647501,-1595.93283172,0.00032877,7]
[356725305,1743036647510,-1595.93283172,0.00032877,7]
[356725307,1743036647520,-1595.93283172,0.00032877,7]
[356725309,1743036647529,-1595.93283172,0.00032877,7]
[356725310,1743036647539,-1595.93283172,0.00032877,7]
[356725311,1743036647548,-1595.93283172,0.00032877,7]
[356725312,1743036647557,-1595.93283172,0.00032877,7]
[356725313,1743036647567,-1595.93283172,0.00032877,7]
[356725314,1743036647578,-1595.93283172,0.00032877,7]
[356725315,1743036647587,-1595.93283172,0.00032877,7]
[356725316,1743036647598,-1595.93283172,0.00032877,7]
[356725317,1743036647608,-1595.93283172,0.00032877,7]
[356725318,1743036647618,-1595.93283172,0.00032877,7]
[356725319,1743036647627,-1595.93283172,0.00032877,7]
[356725320,1743036647636,-1595.93283172,0.00032877,7]
[356725321,1743036647646,-1595.93283172,0.00032877,7]
[356725322,1743036647655,-1569.9525298,0.00032877,7]
[356725323,1743036647665,-1569.9525298,0.00032877,7]
[356725324,1743036647674,-1569.9525298,0.00032877,7]
[356725325,1743036647684,-1569.9525298,0.00032877,7]
[356725326,1743036647695,-1569.9525298,0.00032877,7]
[356725327,1743036647704,-1569.9525298,0.00032877,7]
[356725328,1743036647714,-1569.9525298,0.00032877,7]
[356725329,1743036647724,-1569.9525298,0.00032877,7]
[356725330,1743036647734,-1569.9525298,0.00032877,7]
[356725331,1743036647744,-1569.9525298,0.00032877,7]
[356725332,1743036647754,-1569.9525298,0.00032877,7]
[356725333,1743036647763,-1569.9525298,0.00032877,7]
[356725334,1743036647773,-1569.9525298,0.00032877,7]
[356725335,1743036647782,-1569.9525298,0.00032877,7]
[356725336,1743036647792,-1569.9525298,0.00032877,7]
[356725337,1743036647801,-1569.9525298,0.00032877,7]
[356725338,1743036647811,-1569.9525298,0.00032877,7]
[356725339,1743036647821,-1569.9525298,0.00032877,7]
[356725340,1743036647831,-1569.9525298,0.00032877,7]
[356725341,1743036647840,-1569.9525298,0.00032877,7]
[356725342,1743036647849,-1569.9525298,0.00032877,7]
[356725343,1743036647859,-1569.9525298,0.00032877,7]
[356725344,1743036647868,-1569.9525298,0.00032877,7]
[356725345,1743036647878,-62.51522233,0.00032877,7]
[356725346,1743036648334,-1407.86314223,0.00032877,7]
[356725349,1743037557135,-271.8,0.000137,2]
[356725350,1743037633090,-588.88841515,0.000137,2]
[356725351,1743037633112,-77.34585341,0.00016741,2]
[356725352,1743037762114,-174.235265,0.00010959,2]
[356725353,1743037762137,-500.0,0.00014762,2]
[356725354,1743037762157,-500.0,0.00014814,2]
[356725355,1743037762178,-500.0,0.00014911,2]
[356725356,1743037762200,-160.0,0.0001777,2]
[356725357,1743037762221,-500.0,0.00020459,2]
[356725358,1743037762243,-27.81354687,0.00021,2]
[356725399,1743037832640,-122.18645313,0.00021,2]
[356725401,1743037832650,-300.0,0.00025436,2]
[356725403,1743037832660,-1334.56912207,0.00025437,2]
[356725485,1743037843529,-303.0,0.00023,2]
[356725486,1743037843539,-303.0,0.00023288,2]
[356725487,1743037843549,-303.0,0.00024164,2]
[356725488,1743037843559,-305.0,0.00025373,2]
[356725489,1743037843569,-2078.1025798,0.00025437,2]
[356725490,1743037843584,-21487.32829813,0.00025437,2]
[356725491,1743037843594,-486.09980929,0.00025908,2]
[356725492,1743037843643,-13.90019071,0.00025908,2]
[356725493,1743037843654,-596.0035077,0.00026586,2]
[356725494,1743037843664,-500.0,0.00026626,2]
[356725495,1743037843673,-500.0,0.00026626,2]
[356725496,1743037843683,-500.0,0.00026626,2]
[356725497,1743037843693,-236.20186586,0.00026626,2]
[356725498,1743037843702,-500.0,0.00026626,2]
[356725499,1743037843712,-500.0,0.00026626,2]
[356725500,1743037843722,-500.0,0.00026626,2]
[356725501,1743037843732,-500.0,0.00026626,2]
[356725502,1743037843743,-500.0,0.00026626,2]
[356725503,1743037843753,-500.0,0.00026626,2]
[356725504,1743037843762,-500.0,0.00026626,2]
[356725505,1743037843772,-375.16939796,0.00026626,2]
[356725506,1743037843782,-516.1631013,0.00026626,2]
[356725507,1743037843792,-457.55308917,0.00026626,2]
[356725508,1743037843801,-5934.56242056,0.00026627,2]
[356725509,1743037843813,-1181.66418705,0.00026627,2]
[356726431,1743038060982,-535.42443835,0.00017812,2]
[356726432,1743038061006,-151.0,0.00024932,2]
[356726433,1743038061032,-151.0,0.00025,2]
[356726434,1743038061053,-151.0,0.0002589,2]
[356726435,1743038061074,-1000.22396845,0.000266,2]
[356726436,1743038061095,-3.1515932,0.00026612,2]
[356726437,1743038116569,-160.0,0.00026597,2]
[356726438,1743038116592,-472.0,0.00026627,2]
[356726439,1743038825134,-759.28964688,0.00024541,2]
[356726440,1743038830082,-472.75714951,0.00024541,2]
[356726441,1743038839102,-1112.96437984,0.00024541,2]
[356726442,1743038845092,-500.0,0.00013664,2]
[356726443,1743038845115,-500.0,0.000202,2]
[356726444,1743038845135,-66.09836698,0.0002364,2]
[356726446,1743038951126,-159.7596,0.00010959,2]
[356726451,1743038959095,-14.475665,0.00010959,2]
[356726452,1743038959118,-300.0,0.00014999,2]
[356726453,1743038959140,-13832.03541235,0.00015,2]
[356726454,1743038959162,-10421.72681764,0.00015,2]
[356726455,1743038971120,-177.29834153,0.00015,2]
[356726456,1743038971143,-420.0,0.00016416,2]
[356726457,1743038971164,-250.0,0.00017,2]
[356726458,1743038971185,-7173.6598767,0.00017,2]
[356726475,1743039032823,-300.0,0.00016999,2]
[356726476,1743039032833,-21402.44122127,0.00017,2]
[356726477,1743039032843,-354.0,0.00018567,2]
[356726478,1743039032853,-1495.69076428,0.000229,2]
[356726479,1743039032862,-1559.0,0.00023,2]
[356726480,1743039032872,-788.50176573,0.0002364,2]
[356726481,1743039032881,-500.0,0.0002385,2]
[356726482,1743039032892,-66.76221607,0.00024541,2]
[356726483,1743039032901,-151.0,0.00025,2]
[356726484,1743039032910,-250.0,0.00025116,2]
[356726485,1743039032920,-1495.69076423,0.00025329,2]
[356726486,1743039032929,-363596.43267866,0.000254,7]
[356726489,1743039038727,-152.0,0.00025,2]
[356726490,1743039038737,-1438.19360523,0.000254,7]
[356726491,1743039038750,-3941.54215633,0.000254,7]
[356726499,1743039043784,-41224.21951227,0.000254,7]
[356726504,1743040036129,-500.0,0.00014506,2]
[356726505,1743040036151,-500.0,0.00016005,2]
[356726506,1743040036172,-45.60728638,0.00016313,2]
[356726507,1743040037111,-454.39271362,0.00016313,2]
[356726508,1743040037132,-675.43459424,0.00017511,2]
[356726509,1743040038185,-4324.56540576,0.00017511,2]
[356726510,1743040038207,-158.27144632,0.000176,2]
[356726511,1743040038229,-600.0,0.000176,2]
[356726512,1743040038253,-300.0,0.0001761,2]
[356726513,1743040038274,-5340.79238357,0.00017611,2]
[356726514,1743040038297,-622.2,0.00017655,2]
[356726515,1743040038320,-645.2214,0.0001771,2]
[356726516,1743040038345,-508.31240202,0.00017765,2]
[356726517,1743040039100,-190.70829238,0.00017765,2]
[356726518,1743040149188,-500.0,0.00013349,2]
[356726519,1743040149212,-500.0,0.00014024,2]
[356726520,1743040149233,-500.0,0.00015032,2]
[356726521,1743040149254,-500.0,0.00016294,2]
[356726522,1743040149276,-5211.2811471,0.00016743,2]
[356726523,1743040149301,-1085.75928483,0.00017765,2]
[356726524,1743040149325,-139.71419949,0.00017765,2]
[356726548,1743040235775,-300.0,0.00017874,2]
[356726549,1743040235786,-5000.0,0.0001798,2]
[356726550,1743040235795,-600.0,0.0001807,2]
[356726551,1743040235805,-500.0,0.0001808,2]
[356726552,1743040235815,-500.0,0.0001808,2]
[356726553,1743040235825,-165.14131881,0.0001808,2]
[356726554,1743040235834,-500.0,0.0001808,2]
[356726555,1743040235844,-500.0,0.0001808,2]
[356726556,1743040235854,-500.0,0.0001808,2]
[356726557,1743040235864,-500.0,0.0001808,2]
[356726558,1743040235874,-500.0,0.0001808,2]
[356726559,1743040235883,-383.79573397,0.0001808,2]
[356726560,1743040235893,-24900.0,0.00018081,2]
[356726561,1743040235902,-622.2,0.00018125,2]
[356726562,1743040235912,-645.2214,0.0001818,2]
[356726563,1743040235921,-500.0,0.00018213,2]
[356726564,1743040235931,-669.0945918,0.00018235,2]
[356726565,1743040235941,-763.80115724,0.0001829,2]
[356726566,1743040235951,-160.04,0.000186,2]
[356726567,1743040235961,-2120.80170432,0.000189,2]
[356726568,1743040235971,-189.101663,0.00019431,2]
[356726569,1743040235981,-2120.80170404,0.00019659,2]
[356726570,1743040235990,-299.2374004,0.00020225,2]
[356726571,1743040235999,-2120.80170404,0.00020417,2]
[356726572,1743040236009,-2120.80170404,0.00021176,3]
[356726573,1743040236019,-500.0,0.00021291,2]
[356726574,1743040236028,-208.0727489,0.0002139,2]
[356726575,1743040236039,-150.0,0.00021678,2]
[356726576,1743040236049,-2120.80170404,0.00021934,3]
[356726577,1743040236058,-150.0,0.00022047,2]
[356726578,1743040236068,-150.0,0.00022211,2]
[356726579,1743040236078,-150.0,0.00022567,2]
[356726580,1743040236087,-2120.80170404,0.00022693,4]
[356726581,1743040236097,-150.0,0.00022982,2]
[356726582,1743040236107,-150.0,0.000232,2]
[356726583,1743040236116,-150.0,0.00023346,2]
[356726584,1743040236127,-2120.80170404,0.00023452,4]
[356726585,1743040236137,-150.0,0.00023745,2]
[356726586,1743040236147,-150.0,0.00024067,2]
[356726587,1743040236157,-150.0,0.00024163,2]
[356726588,1743040236167,-2120.80170404,0.0002421,5]
[356726589,1743040236177,-150.0,0.0002449,2]
[356726590,1743040236186,-233.86462515,0.00024658,2]
[356726591,1743040236196,-176.19525031,0.00024725,2]
[356726592,1743040236206,-2120.80170404,0.00024969,5]
[356726593,1743040236215,-152.0,0.00025,2]
[356726594,1743040236225,-500.0,0.00025399,2]
[356726595,1743040236234,-395.27223285,0.00025399,2]
[356726596,1743040236244,-91797.09504415,0.000254,7]
[356726597,1743040236254,-395.88746768,0.00025445,2]
[356726598,1743040236264,-177.54083388,0.00025448,2]
[356726599,1743040236275,-395.88746766,0.00025448,2]
[356726600,1743040236287,-395.88746766,0.00025451,2]
[356726601,1743040236297,-395.88746766,0.00025453,2]
[356726602,1743040236309,-395.88746766,0.00025456,2]
[356726603,1743040236319,-1375.40050511,0.00025466,2]
[356726604,1743040236329,-3568.92131256,0.00025486,2]
[356726605,1743040236339,-26354.52038752,0.00025535,2]
[356726606,1743040236354,-184230.34912769,0.00025535,2]
[356726621,1743040237712,-2785.87455458,0.00025535,2]
[356726622,1743040237766,-8541.02796053,0.00025535,2]
[356726623,1743040237778,-386.01728257,0.00025535,2]
[356726624,1743040237791,-892.31656702,0.00025535,2]
[356726625,1743040237804,-13638.26020255,0.00025535,2]
[356726626,1743040237816,-872.12,0.00025535,2]
[356726627,1743040237829,-674.62973335,0.00025535,2]
[356726628,1743040237841,-2493.08262015,0.00025535,2]
[356726643,1743040240130,-21.18981027,0.00025,2]
[356726657,1743040242900,-131.81018973,0.00025,2]
[356726658,1743040242911,-14604.87465604,0.00025535,2]
[356726659,1743040242922,-1919.37876965,0.00025545,2]
[356726660,1743040242932,-5180.59587512,0.00025545,2]
[356726661,1743040242943,-2407.6386919,0.00025546,2]
[356726662,1743040243006,-17143.13757573,0.00025546,2]
[356726666,1743040245957,-1388.8181153,0.00025546,2]
[356726667,1743040245969,-2986.49999998,0.00025546,2]
[356726669,1743040532496,192.3053391,0.00025,120]
[356726682,1743041145136,-271.8,0.00013208,2]
[356726683,1743041230154,-154.96079936,0.00013208,2]
[356726684,1743041249094,-300.0,0.00014208,2]
[356726685,1743041249116,-404.17157034,0.00014209,2]
[356726686,1743041349112,-500.0,0.0001365,2]
[356726687,1743041349148,-173.0,0.00014208,2]
[356726688,1743041349183,-95.82842966,0.00014209,2]
[356726689,1743041349217,-500.0,0.00014209,2]
[356726690,1743041349248,-500.0,0.00014209,2]
[356726691,1743041349283,-150.384967,0.00014209,2]
[356726692,1743041352173,-349.615033,0.00014209,2]
[356726693,1743041352194,-500.0,0.00014209,2]
[356726694,1743041352215,-500.0,0.00014209,2]
[356726695,1743041352235,-500.0,0.00014475,2]
[356726696,1743041352256,-500.0,0.00014884,2]
[356726697,1743041352277,-500.0,0.00015834,2]
[356726698,1743041352298,-433.19753981,0.00016845,2]
[356726734,1743041432050,-66.80246019,0.00016845,2]
[356726736,1743041432060,-500.0,0.00017429,2]
[356726738,1743041432069,-500.0,0.00017662,2]
[356726739,1743041432079,-5000.0,0.0001798,2]
[356726741,1743041432089,-834.95724862,0.00018196,2]
[356726743,1743041432099,-160.0,0.00018198,2]
[356726744,1743041432108,-160.0,0.00018198,2]
[356726746,1743041432117,-159.21,0.000186,2]
[356726747,1743041432126,-1809.62799155,0.000188,2]
[356726748,1743041432136,-198.73815515,0.00018844,2]
[356726749,1743041432145,-600.0,0.00018844,2]
[356726750,1743041432154,-500.0,0.00018854,2]
[356726751,1743041432259,-472.95886136,0.00018854,2]
[356726752,1743041432269,-211.51787756,0.00018854,2]
[356726753,1743041432279,-500.0,0.00018854,2]
[356726754,1743041432288,-24900.0,0.00018855,2]
[356726755,1743041432297,-2335.38765366,0.000189,2]
[356726756,1743041432307,-500.0,0.00019197,2]
[356726757,1743041432316,-2335.38765363,0.00019624,2]
[356726758,1743041432325,-189.1016632,0.00019908,2]
[356726759,1743041432334,-2335.38765363,0.00020348,2]
[356726760,1743041432344,-500.0,0.00020406,2]
[356726761,1743041432353,-500.0,0.0002045,2]
[356726762,1743041432363,-150.0,0.00021,2]
[356726763,1743041432372,-2335.38765363,0.00021072,3]
[356726764,1743041432380,-423.4452721,0.00021512,2]
[356726765,1743041432390,-500.0,0.00021612,2]
[356726766,1743041432399,-500.0,0.0002162,2]
[356726767,1743041432409,-2335.38765363,0.00021797,3]
[356726768,1743041432418,-500.0,0.00021812,2]
[356726769,1743041432427,-1809.62799152,0.00021814,2]
[356726770,1743041432437,-1296.5569256,0.00021905,2]
[356726771,1743041432446,-500.0,0.00022515,2]
[356726772,1743041432455,-2335.38765363,0.00022521,4]
[356726773,1743041432465,-2335.38765363,0.00023245,4]
[356726774,1743041432475,-423.44527208,0.00023429,2]
[356726775,1743041432484,-500.0,0.00023861,2]
[356726776,1743041432494,-251.11174063,0.00023878,2]
[356726777,1743041432504,-2335.38765363,0.00023969,5]
[356726778,1743041432513,-500.0,0.00024366,2]
[356726779,1743041432523,-2335.38765363,0.00024693,5]
[356726780,1743041432532,-1809.62799152,0.00024829,2]
[356726781,1743041432541,-153.0,0.00025,2]
[356726782,1743041432551,-500.0,0.00025056,2]
[356726783,1743041432560,-563.01820994,0.00025118,2]
[356726784,1743041432569,-423.44527208,0.00025345,2]
[356726785,1743041432578,-165.5739517,0.00025373,2]
[356726786,1743041432588,-1375.40050511,0.00025373,2]
[356726787,1743041432598,-165.57395167,0.00025397,2]
[356726788,1743041432607,-2335.38765363,0.00025417,6]